fUSD/lending_fUSD_20260630
["ID","MTS","AMOUNT","RATE_DAILY","PERIOD"]
[426724883,1782761450000,-2570.07,0.000338,7]
[426724885,1782761450000,-500.0,0.00033814,9]
[426724889,1782761450000,-6896.2026673,0.00033969,2]
[426724884,1782761450000,-151.83365069,0.00033811,2]
[426724887,1782761450000,-872.52704213,0.00033864,2]
[426724882,1782761450000,-1825.93,0.00033781,2]
[426724890,1782761450000,-5000.0,0.00033969,2]
[426724920,1782761450000,-1000.0,0.00033973,7]
[426724961,1782761450000,-872.52704213,0.00034099,2]
[426724929,1782761450000,-1000.0,0.00033973,7]
[426724952,1782761450000,-235.0,0.00033998,3]
[426724953,1782761450000,-348.34860366,0.00034,2]
[426724951,1782761450000,-1432.37233041,0.00033973,7]
[426724956,1782761450000,-793.99279464,0.00034028,2]
[426724957,1782761450000,-785.0,0.00034028,2]
[426724958,1782761450000,-785.0,0.00034028,2]
[426724962,1782761450000,-653.64,0.000341,7]
[426724964,1782761450000,-151.75,0.00034141,13]
[426724960,1782761450000,-2000.0,0.00034066,7]
[426724959,1782761450000,-785.0,0.00034028,2]
[426724963,1782761450000,-151.75,0.00034141,13]
[426724978,1782761450000,-500.0,0.00034371,9]
[426724967,1782761450000,-151.75,0.00034141,13]
[426724965,1782761450000,-151.75,0.00034141,13]
[426724968,1782761450000,-156.79,0.00034141,13]
[426724969,1782761450000,-156.78,0.00034141,13]
[426724972,1782761450000,-194.52,0.00034212,120]
[426724966,1782761450000,-151.75,0.00034141,13]
[426724970,1782761450000,-151.83365069,0.00034165,2]
[426724976,1782761450000,-4035.91599356,0.00034336,2]
[426724973,1782761450000,-302.0,0.00034246,14]
[426724974,1782761450000,-1505.32989241,0.00034273,2]
[426724977,1782761450000,-872.52704213,0.00034358,2]
[426724971,1782761450000,-150.0,0.0003419,2]
[426724975,1782761450000,-2026.41,0.000343,30]
[426724979,1782761450000,-785.0,0.00034398,2]
[426724980,1782761450000,-785.0,0.00034398,2]
[426724950,1782761450000,-1000.0,0.00033973,7]
[426724949,1782761450000,-1000.0,0.00033973,7]
[426724919,1782761450000,-1000.0,0.00033973,7]
[426724947,1782761450000,-1000.0,0.00033973,7]
[426724948,1782761450000,-1000.0,0.00033973,7]
[426724921,1782761450000,-1000.0,0.00033973,7]
[426724925,1782761450000,-1000.0,0.00033973,7]
[426724927,1782761450000,-1000.0,0.00033973,7]
[426724924,1782761450000,-1000.0,0.00033973,7]
[426724930,1782761450000,-1000.0,0.00033973,7]
[426724931,1782761450000,-1000.0,0.00033973,7]
[426724926,1782761450000,-1000.0,0.00033973,7]
[426724923,1782761450000,-1000.0,0.00033973,7]
[426724928,1782761450000,-1000.0,0.00033973,7]
[426724933,1782761450000,-1000.0,0.00033973,7]
[426724932,1782761450000,-1000.0,0.00033973,7]
[426724935,1782761450000,-1000.0,0.00033973,7]
[426724922,1782761450000,-1000.0,0.00033973,7]
[426724939,1782761450000,-1000.0,0.00033973,7]
[426724934,1782761450000,-1000.0,0.00033973,7]
[426724945,1782761450000,-1000.0,0.00033973,7]
[426724954,1782761450000,-20000.0,0.00034,2]
[426724943,1782761450000,-1000.0,0.00033973,7]
[426724955,1782761450000,-353.49558011,0.00034002,30]
[426724944,1782761450000,-1000.0,0.00033973,7]
[426724946,1782761450000,-1000.0,0.00033973,7]
[426724937,1782761450000,-1000.0,0.00033973,7]
[426724941,1782761450000,-1000.0,0.00033973,7]
[426724940,1782761450000,-1000.0,0.00033973,7]
[426724936,1782761450000,-1000.0,0.00033973,7]
[426724938,1782761450000,-1000.0,0.00033973,7]
[426724942,1782761450000,-1000.0,0.00033973,7]
[426725012,1782761451000,-164.0,0.00034674,30]
[426725013,1782761451000,-162.0,0.00034674,30]
[426725011,1782761451000,-357.0,0.00034674,30]
[426725009,1782761451000,-241.0,0.00034635,30]
[426725008,1782761451000,-353.0,0.00034635,30]
[426725005,1782761451000,-155.0,0.00034635,30]
[426725016,1782761451000,-151.75,0.00034689,13]
[426725023,1782761451000,-355.98,0.00034769,3]
[426725014,1782761451000,-150.0,0.00034687,2]
[426725010,1782761451000,-156.0,0.00034674,30]
[426725020,1782761451000,-156.79,0.00034689,13]
[426725021,1782761451000,-156.78,0.00034689,13]
[426725019,1782761451000,-151.75,0.00034689,13]
[426725024,1782761451000,-500.0,0.00034771,30]
[426725018,1782761451000,-151.75,0.00034689,13]
[426725029,1782761451000,-653.64,0.000348,7]
[426725022,1782761451000,-872.52704213,0.00034754,2]
[426725027,1782761451000,-500.0,0.00034771,30]
[426725026,1782761451000,-500.0,0.00034771,30]
[426725025,1782761451000,-500.0,0.00034771,30]
[426725031,1782761451000,-2000.0,0.00034807,7]
[426725030,1782761451000,-872.52704213,0.00034801,2]
[426725007,1782761451000,-970.0,0.00034635,30]
[426725028,1782761451000,-1500.0,0.00034795,2]
[426725006,1782761451000,-619.0,0.00034635,30]
[426724994,1782761451000,-2570.07,0.000345,7]
[426725004,1782761451000,-399.0,0.00034627,30]
[426724989,1782761451000,-2029.0,0.00034468,120]
[426724981,1782761451000,-785.0,0.00034398,2]
[426724986,1782761451000,-785.0,0.00034398,2]
[426724982,1782761451000,-785.0,0.00034398,2]
[426724984,1782761451000,-785.0,0.00034398,2]
[426724983,1782761451000,-785.0,0.00034398,2]
[426724987,1782761451000,-1500.0,0.000344,7]
[426724985,1782761451000,-785.0,0.00034398,2]
[426724988,1782761451000,-1868.0,0.00034468,120]
[426724990,1782761451000,-1868.0,0.00034478,120]
[426724993,1782761451000,-2029.0,0.00034488,120]
[426725032,1782761451000,-200.0,0.0003486,7]
[426724992,1782761451000,-1868.0,0.00034488,120]
[426724995,1782761451000,-199.75,0.000345,13]
[426724996,1782761451000,-532.0,0.00034511,7]
[426724991,1782761451000,-2029.0,0.00034478,120]
[426725001,1782761451000,-513.08,0.00034544,7]
[426725000,1782761451000,-147098.61640224,0.00034524,7]
[426725002,1782761451000,-1632.96,0.000346,30]
[426724998,1782761451000,-151.83365069,0.00034518,2]
[426724997,1782761451000,-1000.0,0.00034511,2]
[426724999,1782761451000,-500.0,0.00034523,2]
[426725003,1782761451000,-254.0,0.00034627,30]
[426725015,1782761451000,-151.75,0.00034689,13]
[426725041,1782761451000,-2029.0,0.0003498,120]
[426725017,1782761451000,-151.75,0.00034689,13]
[426725042,1782761451000,-5725.99032933,0.00034989,2]
[426725059,1782761451000,-188.22354418,0.00035,120]
[426725061,1782761451000,-429.62074438,0.00035,120]
[426725066,1782761451000,-208.14482667,0.00035,120]
[426725068,1782761451000,-347.0,0.00035,30]
[426725071,1782761451000,-1500.0,0.00035,2]
[426725069,1782761451000,-1500.0,0.00035,2]
[426725072,1782761451000,-1500.0,0.00035,2]
[426725070,1782761451000,-1500.0,0.00035,2]
[426725073,1782761451000,-1500.0,0.00035,2]
[426725074,1782761451000,-1500.0,0.00035,2]
[426725067,1782761451000,-204.13536785,0.00035,120]
[426725057,1782761451000,-205.06990362,0.00035,120]
[426725077,1782761451000,-1500.0,0.00035,2]
[426725079,1782761451000,-872.52704213,0.00035034,2]
[426725083,1782761451000,-1868.0,0.0003518,120]
[426725086,1782761451000,-951.96,0.00035198,120]
[426725076,1782761451000,-1500.0,0.00035,2]
[426725080,1782761451000,-872.52704213,0.00035038,2]
[426725084,1782761451000,-1868.0,0.0003519,120]
[426725078,1782761451000,-1500.0,0.00035,2]
[426725085,1782761451000,-338.754249,0.00035193,7]
[426725082,1782761451000,-1868.0,0.0003517,120]
[426725087,1782761451000,-2570.07,0.000352,7]
[426725034,1782761451000,-200.0,0.0003486,7]
[426725081,1782761451000,-872.52704213,0.0003514,2]
[426725054,1782761451000,-200.30438808,0.00035,120]
[426725075,1782761451000,-1500.0,0.00035,2]
[426725062,1782761451000,-169.62419858,0.00035,120]
[426725033,1782761451000,-200.0,0.0003486,7]
[426725064,1782761451000,-1069.4149385,0.00035,120]
[426725037,1782761451000,-872.52704213,0.00034926,2]
[426725035,1782761451000,-151.83365069,0.00034872,2]
[426725036,1782761451000,-4591.0,0.00034886,10]
[426725039,1782761451000,-504.0,0.00034961,2]
[426725038,1782761451000,-500.0,0.00034927,10]
[426725040,1782761451000,-2029.0,0.0003497,120]
[426725049,1782761451000,-213.90487631,0.00035,120]
[426725046,1782761451000,-1763.58365606,0.00035,120]
[426725045,1782761451000,-2029.0,0.0003499,120]
[426725048,1782761451000,-183.66054816,0.00035,120]
[426725044,1782761451000,-452.81055652,0.00034989,2]
[426725043,1782761451000,-227.09549037,0.00034989,2]
[426725047,1782761451000,-208.90060572,0.00035,120]
[426725055,1782761451000,-262.07970712,0.00035,120]
[426725056,1782761451000,-206.11002998,0.00035,120]
[426725065,1782761451000,-170.89233083,0.00035,120]
[426725060,1782761451000,-178.16973594,0.00035,120]
[426725058,1782761451000,-328.93150857,0.00035,120]
[426725063,1782761451000,-182.02115787,0.00035,120]
[426725052,1782761451000,-223.07082127,0.00035,120]
[426725051,1782761451000,-302.68191795,0.00035,120]
[426725050,1782761451000,-188.31751342,0.00035,120]
[426725053,1782761451000,-200.0,0.00035,120]
[426725132,1782761452000,-11051.35940157,0.0003554,30]
[426725129,1782761452000,-11051.35940157,0.0003554,30]
[426725135,1782761452000,-11051.35940157,0.0003554,30]
[426725138,1782761452000,-11051.35940157,0.0003554,30]
[426725127,1782761452000,-11051.35940157,0.0003554,30]
[426725128,1782761452000,-11051.35940157,0.0003554,30]
[426725120,1782761452000,-291.77,0.00035481,2]
[426725121,1782761452000,-1737.06,0.00035481,7]
[426725123,1782761452000,-200.0,0.000355,14]
[426725119,1782761452000,-152.5325826,0.00035457,15]
[426725117,1782761452000,-217.9140747,0.00035409,60]
[426725131,1782761452000,-11051.35940157,0.0003554,30]
[426725126,1782761452000,-11051.35940157,0.0003554,30]
[426725137,1782761452000,-11051.35940157,0.0003554,30]
[426725145,1782761452000,-2525.90789078,0.0003554,30]
[426725134,1782761452000,-11051.35940157,0.0003554,30]
[426725133,1782761452000,-11051.35940157,0.0003554,30]
[426725136,1782761452000,-11051.35940157,0.0003554,30]
[426725130,1782761452000,-11051.35940157,0.0003554,30]
[426725151,1782761452000,-2525.90789078,0.0003554,30]
[426725141,1782761452000,-11051.35940157,0.0003554,30]
[426725142,1782761452000,-11051.35940157,0.0003554,30]
[426725143,1782761452000,-2525.90789078,0.0003554,30]
[426725144,1782761452000,-2525.90789078,0.0003554,30]
[426725140,1782761452000,-11051.35940157,0.0003554,30]
[426725148,1782761452000,-2525.90789078,0.0003554,30]
[426725115,1782761452000,-150.0,0.00035409,60]
[426725150,1782761452000,-2525.90789078,0.0003554,30]
[426725139,1782761452000,-11051.35940157,0.0003554,30]
[426725113,1782761452000,-242.0,0.00035407,7]
[426725094,1782761452000,-151.75,0.00035237,13]
[426725116,1782761452000,-150.0,0.00035409,60]
[426725147,1782761452000,-2525.90789078,0.0003554,30]
[426725088,1782761452000,-151.83365069,0.00035226,2]
[426725089,1782761452000,-513.08,0.00035229,7]
[426725098,1782761452000,-2026.41,0.000353,30]
[426725095,1782761452000,-156.79,0.00035237,13]
[426725091,1782761452000,-151.75,0.00035237,13]
[426725090,1782761452000,-151.75,0.00035237,13]
[426725096,1782761452000,-156.78,0.00035237,13]
[426725092,1782761452000,-151.75,0.00035237,13]
[426725097,1782761452000,-872.52704213,0.00035267,2]
[426725099,1782761452000,-268.17075154,0.000353,30]
[426725101,1782761452000,-268.17075153,0.000353,30]
[426725102,1782761452000,-207.89824776,0.000353,30]
[426725118,1782761452000,-48111.46415001,0.00035455,30]
[426725111,1782761452000,-200.0,0.000354,11]
[426725103,1782761452000,-207.89824774,0.000353,30]
[426725112,1782761452000,-5800.0,0.00035407,2]
[426725105,1782761452000,-869.13343569,0.000353,30]
[426725104,1782761452000,-225.58366518,0.000353,30]
[426725110,1782761452000,-5800.0,0.00035399,2]
[426725106,1782761452000,-4035.91599356,0.00035328,2]
[426725107,1782761452000,-283.0,0.00035373,2]
[426725109,1782761452000,-1254.44157701,0.0003539,2]
[426725108,1782761452000,-5800.0,0.0003539,2]
[426725114,1782761452000,-150.0,0.00035409,60]
[426725122,1782761452000,-500.0,0.00035484,11]
[426725125,1782761452000,-1632.96,0.000355,30]
[426725124,1782761452000,-653.64,0.000355,7]
[426725100,1782761452000,-268.17075153,0.000353,30]
[426725149,1782761452000,-2525.90789078,0.0003554,30]
[426725093,1782761452000,-151.75,0.00035237,13]
[426725152,1782761452000,-2525.90789078,0.0003554,30]
[426725187,1782761452000,-500.0,0.00035639,2]
[426725184,1782761452000,-500.0,0.00035639,2]
[426725183,1782761452000,-400.95584748,0.00035639,120]
[426725190,1782761452000,-500.0,0.00035639,2]
[426725189,1782761452000,-500.0,0.00035639,2]
[426725200,1782761452000,-1152072.088,0.0003564,2]
[426725192,1782761452000,-500.0,0.00035639,2]
[426725191,1782761452000,-500.0,0.00035639,2]
[426725199,1782761452000,-392.83847576,0.00035639,2]
[426725194,1782761452000,-500.0,0.00035639,2]
[426725196,1782761452000,-500.0,0.00035639,2]
[426725193,1782761452000,-500.0,0.00035639,2]
[426725195,1782761452000,-500.0,0.00035639,2]
[426725181,1782761452000,-8857.0,0.00035616,5]
[426725197,1782761452000,-500.0,0.00035639,2]
[426725201,1782761452000,-25000.0,0.00035649,3]
[426725202,1782761452000,-25000.0,0.00035649,3]
[426725203,1782761452000,-25000.0,0.00035649,3]
[426725206,1782761452000,-13657.81168864,0.00035649,3]
[426725212,1782761452000,-165.035682,0.00035649,30]
[426725209,1782761452000,-189.166298,0.00035649,30]
[426725213,1782761452000,-189.166298,0.00035649,30]
[426725210,1782761452000,-189.166298,0.00035649,30]
[426725211,1782761452000,-183.82229,0.00035649,30]
[426725208,1782761452000,-531157.31862062,0.00035649,2]
[426725205,1782761452000,-1350.05536941,0.00035649,3]
[426725204,1782761452000,-25000.0,0.00035649,3]
[426725146,1782761452000,-2525.90789078,0.0003554,30]
[426725198,1782761452000,-500.0,0.00035639,2]
[426725185,1782761452000,-500.0,0.00035639,2]
[426725207,1782761452000,-13260.57721285,0.00035649,3]
[426725180,1782761452000,-9159.0,0.00035616,5]
[426725186,1782761452000,-500.0,0.00035639,2]
[426725155,1782761452000,-2525.90789078,0.0003554,30]
[426725154,1782761452000,-2525.90789078,0.0003554,30]
[426725156,1782761452000,-2525.90789078,0.0003554,30]
[426725157,1782761452000,-2525.90789078,0.0003554,30]
[426725159,1782761452000,-2525.90789078,0.0003554,30]
[426725153,1782761452000,-2525.90789078,0.0003554,30]
[426725162,1782761452000,-924.42,0.0003555,7]
[426725161,1782761452000,-2000.0,0.00035549,7]
[426725160,1782761452000,-2336.0,0.00035548,11]
[426725158,1782761452000,-2525.90789078,0.0003554,30]
[426725165,1782761452000,-151.83365069,0.0003558,2]
[426725176,1782761452000,-500.0,0.00035616,7]
[426725175,1782761452000,-671.0,0.00035616,5]
[426725163,1782761452000,-500.0,0.00035562,2]
[426725168,1782761452000,-1492.73875553,0.00035593,30]
[426725182,1782761452000,-500.0,0.00035639,120]
[426725164,1782761452000,-147098.61640224,0.00035563,7]
[426725178,1782761452000,-8881.0,0.00035616,5]
[426725188,1782761452000,-500.0,0.00035639,2]
[426725179,1782761452000,-231.1,0.00035616,2]
[426725174,1782761452000,-391.6,0.00035616,10]
[426725169,1782761452000,-481661.23557258,0.00035593,2]
[426725177,1782761452000,-520.16644751,0.00035616,7]
[426725172,1782761452000,-2006.0,0.000356,120]
[426725171,1782761452000,-286.21580232,0.00035597,2]
[426725166,1782761452000,-500.0,0.00035592,2]
[426725173,1782761452000,-151.0,0.00035613,14]
[426725170,1782761452000,-240.22873811,0.00035597,2]
[426725167,1782761452000,-500.0,0.00035592,2]
[426725239,1782761453000,-388.92392103,0.00035683,7]
[426725244,1782761453000,-192.834512,0.00035698,30]
[426725233,1782761453000,-1362.0,0.00035676,2]
[426725240,1782761453000,-150.0,0.00035687,2]
[426725238,1782761453000,-500.0,0.00035683,7]
[426725242,1782761453000,-192.834512,0.00035698,30]
[426725243,1782761453000,-192.834512,0.00035698,30]
[426725241,1782761453000,-236.96,0.00035698,60]
[426725246,1782761453000,-151.0,0.00035698,30]
[426725248,1782761453000,-151.0,0.00035698,30]
[426725245,1782761453000,-192.834512,0.00035698,30]
[426725249,1782761453000,-151.0,0.00035698,30]
[426725252,1782761453000,-151.0,0.00035698,30]
[426725251,1782761453000,-151.0,0.00035698,30]
[426725250,1782761453000,-151.0,0.00035698,30]
[426725253,1782761453000,-151.0,0.00035698,30]
[426725254,1782761453000,-151.0,0.00035698,30]
[426725236,1782761453000,-6087.0,0.00035676,2]
[426725255,1782761453000,-151.0,0.00035698,30]
[426725247,1782761453000,-151.0,0.00035698,30]
[426725234,1782761453000,-1278.0,0.00035676,2]
[426725219,1782761453000,-151.0,0.00035649,30]
[426725231,1782761453000,-11051.35940157,0.00035672,30]
[426725257,1782761453000,-177.645237,0.00035698,30]
[426725215,1782761453000,-165.035682,0.00035649,30]
[426725214,1782761453000,-183.82229,0.00035649,30]
[426725225,1782761453000,-165.035682,0.00035649,30]
[426725217,1782761453000,-183.82229,0.00035649,30]
[426725218,1782761453000,-151.0,0.00035649,30]
[426725216,1782761453000,-189.166298,0.00035649,30]
[426725222,1782761453000,-165.035682,0.00035649,30]
[426725224,1782761453000,-151.0,0.00035649,30]
[426725220,1782761453000,-151.0,0.00035649,30]
[426725221,1782761453000,-183.82229,0.00035649,30]
[426725223,1782761453000,-151.0,0.00035649,30]
[426725226,1782761453000,-151.0,0.00035649,30]
[426725227,1782761453000,-151.0,0.00035649,30]
[426725232,1782761453000,-2525.90789078,0.00035672,30]
[426725228,1782761453000,-628.24549405,0.00035672,120]
[426725229,1782761453000,-257.0090406,0.00035672,120]
[426725230,1782761453000,-257.00999999,0.00035672,120]
[426725237,1782761453000,-3565.0,0.00035676,2]
[426725235,1782761453000,-1230.0,0.00035676,2]
[426725256,1782761453000,-151.0,0.00035698,30]
[426725265,1782761453000,-173.753751,0.00035698,30]
[426725259,1782761453000,-177.645237,0.00035698,30]
[426725286,1782761453000,-173.959143,0.00035698,30]
[426725288,1782761453000,-151.0,0.00035698,30]
[426725287,1782761453000,-175.179679,0.00035698,30]
[426725284,1782761453000,-175.179679,0.00035698,30]
[426725285,1782761453000,-696.218853,0.00035698,30]
[426725290,1782761453000,-175.179679,0.00035698,30]
[426725289,1782761453000,-696.218853,0.00035698,30]
[426725293,1782761453000,-1078.467362,0.00035698,30]
[426725291,1782761453000,-361.25,0.00035698,30]
[426725283,1782761453000,-151.0,0.00035698,30]
[426725292,1782761453000,-490.443628,0.00035698,30]
[426725294,1782761453000,-175.179679,0.00035698,30]
[426725296,1782761453000,-490.443628,0.00035698,30]
[426725298,1782761453000,-490.443628,0.00035698,30]
[426725297,1782761453000,-1078.467362,0.00035698,30]
[426725299,1782761453000,-361.25,0.00035698,30]
[426725300,1782761453000,-1078.467362,0.00035698,30]
[426725301,1782761453000,-490.443628,0.00035698,30]
[426725302,1782761453000,-361.25,0.00035698,30]
[426725258,1782761453000,-177.645237,0.00035698,30]
[426725295,1782761453000,-361.25,0.00035698,30]
[426725282,1782761453000,-771.407462,0.00035698,30]
[426725303,1782761453000,-1078.467362,0.00035698,30]
[426725281,1782761453000,-173.959143,0.00035698,30]
[426725280,1782761453000,-249.603525,0.00035698,7]
[426725263,1782761453000,-173.753751,0.00035698,30]
[426725262,1782761453000,-173.753751,0.00035698,30]
[426725260,1782761453000,-151.0,0.00035698,30]
[426725261,1782761453000,-177.645237,0.00035698,30]
[426725266,1782761453000,-1344.935843,0.00035698,30]
[426725267,1782761453000,-249.603525,0.00035698,7]
[426725271,1782761453000,-173.959143,0.00035698,30]
[426725269,1782761453000,-771.407462,0.00035698,30]
[426725264,1782761453000,-173.753751,0.00035698,30]
[426725270,1782761453000,-249.603525,0.00035698,7]
[426725273,1782761453000,-771.407462,0.00035698,30]
[426725272,1782761453000,-1344.935843,0.00035698,30]
[426725276,1782761453000,-173.959143,0.00035698,30]
[426725277,1782761453000,-1344.935843,0.00035698,30]
[426725275,1782761453000,-249.603525,0.00035698,7]
[426725274,1782761453000,-696.218853,0.00035698,30]
[426725279,1782761453000,-696.218853,0.00035698,30]
[426725268,1782761453000,-1344.935843,0.00035698,30]
[426725278,1782761453000,-771.407462,0.00035698,30]
[426725337,1782761454000,-4623.96722,0.00035698,30]
[426725336,1782761454000,-217.250615,0.00035698,30]
[426725335,1782761454000,-151.0,0.00035698,7]
[426725332,1782761454000,-4623.96722,0.00035698,30]
[426725331,1782761454000,-151.0,0.00035698,30]
[426725328,1782761454000,-1478.915538,0.00035698,30]
[426725325,1782761454000,-1478.915538,0.00035698,30]
[426725345,1782761454000,-217.250615,0.00035698,30]
[426725333,1782761454000,-237.315107,0.00035698,30]
[426725339,1782761454000,-5839.153419,0.00035698,30]
[426725348,1782761454000,-1293.214118,0.00035698,30]
[426725340,1782761454000,-217.250615,0.00035698,30]
[426725344,1782761454000,-5839.153419,0.00035698,30]
[426725346,1782761454000,-151.0,0.00035698,7]
[426725341,1782761454000,-151.0,0.00035698,7]
[426725342,1782761454000,-4623.96722,0.00035698,30]
[426725343,1782761454000,-1293.214118,0.00035698,30]
[426725358,1782761454000,-1293.214118,0.00035698,30]
[426725327,1782761454000,-4623.96722,0.00035698,30]
[426725349,1782761454000,-5839.153419,0.00035698,30]
[426725350,1782761454000,-217.250615,0.00035698,30]
[426725351,1782761454000,-1312.997201,0.00035698,30]
[426725338,1782761454000,-151.0,0.00035698,30]
[426725326,1782761454000,-237.315107,0.00035698,30]
[426725318,1782761454000,-1478.915538,0.00035698,30]
[426725330,1782761454000,-151.0,0.00035698,7]
[426725352,1782761454000,-4141.455722,0.00035698,30]
[426725305,1782761454000,-180.308326,0.00035698,30]
[426725304,1782761454000,-180.308326,0.00035698,30]
[426725307,1782761454000,-180.308326,0.00035698,30]
[426725306,1782761454000,-180.308326,0.00035698,30]
[426725308,1782761454000,-151.0,0.00035698,30]
[426725313,1782761454000,-151.0,0.00035698,30]
[426725310,1782761454000,-151.0,0.00035698,30]
[426725311,1782761454000,-2208.721779,0.00035698,30]
[426725312,1782761454000,-194.545575,0.00035698,30]
[426725329,1782761454000,-237.315107,0.00035698,30]
[426725309,1782761454000,-151.0,0.00035698,30]
[426725315,1782761454000,-194.545575,0.00035698,30]
[426725317,1782761454000,-2208.721779,0.00035698,30]
[426725316,1782761454000,-151.0,0.00035698,30]
[426725319,1782761454000,-194.545575,0.00035698,30]
[426725321,1782761454000,-2208.721779,0.00035698,30]
[426725320,1782761454000,-151.0,0.00035698,30]
[426725323,1782761454000,-237.315107,0.00035698,30]
[426725322,1782761454000,-1478.915538,0.00035698,30]
[426725324,1782761454000,-194.545575,0.00035698,30]
[426725334,1782761454000,-151.0,0.00035698,30]
[426725314,1782761454000,-2208.721779,0.00035698,30]
[426725347,1782761454000,-151.0,0.00035698,30]
[426725404,1782761454000,-351.0897,0.00035698,30]
[426725355,1782761454000,-1071.291364,0.00035698,30]
[426725380,1782761454000,-151.0,0.00035698,30]
[426725383,1782761454000,-151.0,0.00035698,30]
[426725386,1782761454000,-390.280005,0.00035698,30]
[426725385,1782761454000,-2773.282212,0.00035698,28]
[426725384,1782761454000,-390.280005,0.00035698,30]
[426725388,1782761454000,-390.280005,0.00035698,30]
[426725390,1782761454000,-390.280005,0.00035698,30]
[426725393,1782761454000,-678.729367,0.00035698,30]
[426725394,1782761454000,-678.729367,0.00035698,30]
[426725389,1782761454000,-151.0,0.00035698,30]
[426725379,1782761454000,-156.530422,0.00035698,30]
[426725387,1782761454000,-2773.282212,0.00035698,28]
[426725396,1782761454000,-678.729367,0.00035698,30]
[426725397,1782761454000,-678.729367,0.00035698,30]
[426725399,1782761454000,-351.0897,0.00035698,30]
[426725398,1782761454000,-151.0,0.00035698,30]
[426725395,1782761454000,-151.0,0.00035698,30]
[426725401,1782761454000,-151.0,0.00035698,30]
[426725400,1782761454000,-351.0897,0.00035698,30]
[426725402,1782761454000,-608.829544,0.00035698,30]
[426725403,1782761454000,-151.0,0.00035698,30]
[426725353,1782761454000,-1293.214118,0.00035698,30]
[426725392,1782761454000,-151.0,0.00035698,30]
[426725381,1782761454000,-2773.282212,0.00035698,28]
[426725391,1782761454000,-151.0,0.00035698,30]
[426725378,1782761454000,-2773.282212,0.00035698,28]
[426725357,1782761454000,-1312.997201,0.00035698,30]
[426725377,1782761454000,-151.0,0.00035698,30]
[426725356,1782761454000,-4141.455722,0.00035698,30]
[426725354,1782761454000,-5839.153419,0.00035698,30]
[426725359,1782761454000,-1071.291364,0.00035698,30]
[426725361,1782761454000,-152.013863,0.00035698,30]
[426725370,1782761454000,-5376.721794,0.00035698,30]
[426725369,1782761454000,-1071.291364,0.00035698,30]
[426725367,1782761454000,-17683.530894,0.00035698,30]
[426725365,1782761454000,-5376.721794,0.00035698,30]
[426725366,1782761454000,-4141.455722,0.00035698,30]
[426725362,1782761454000,-4141.455722,0.00035698,30]
[426725364,1782761454000,-1071.291364,0.00035698,30]
[426725363,1782761454000,-1312.997201,0.00035698,30]
[426725360,1782761454000,-5376.721794,0.00035698,30]
[426725368,1782761454000,-1312.997201,0.00035698,30]
[426725382,1782761454000,-156.530422,0.00035698,30]
[426725372,1782761454000,-5376.721794,0.00035698,30]
[426725371,1782761454000,-17683.530894,0.00035698,30]
[426725376,1782761454000,-156.530422,0.00035698,30]
[426725374,1782761454000,-156.530422,0.00035698,30]
[426725373,1782761454000,-17683.530894,0.00035698,30]
[426725375,1782761454000,-17683.530894,0.00035698,30]
[426725452,1782761455000,-9739.217006,0.00035698,30]
[426725443,1782761455000,-5271.588622,0.00035698,30]
[426725454,1782761455000,-5271.588622,0.00035698,30]
[426725439,1782761455000,-5271.588622,0.00035698,30]
[426725433,1782761455000,-2080.750512,0.00035698,30]
[426725442,1782761455000,-1049.811169,0.00035698,30]
[426725440,1782761455000,-1407.782534,0.00035698,30]